bitfinex/quotes_BTCUSD_20220212
["timestamp","ask_amount","ask_price","bid_price","bid_amount"]
[1644675644355,0.26266933,42219.0,42212.0,0.25185378]
[1644675644557,0.26266933,42219.0,42215.0,0.00046621]
[1644675645455,0.26266933,42219.0,42213.0,0.00018099]
[1644675645656,0.26266933,42219.0,42215.0,0.00046621]
[1644675645855,0.250529,42221.0,42215.0,0.00046621]
[1644675646755,0.250529,42221.0,42212.0,0.00018099]
[1644675646957,0.25019667,42220.0,42216.0,0.00019631]
[1644675647156,0.29188524,42219.0,42216.0,0.00019631]
[1644675647610,0.28688524,42219.0,42216.0,0.00019631]
[1644675647807,0.28688524,42219.0,42211.0,0.00018099]
[1644675648007,0.28688524,42219.0,42215.0,0.00019631]
[1644675648611,0.38688524,42219.0,42215.0,0.00019631]
[1644675648811,0.118516,42218.0,42215.0,0.00019631]
[1644675649209,0.118516,42218.0,42214.0,0.00046568]
[1644675649410,0.23561938,42215.0,42214.0,0.00046568]
[1644675649608,0.53134453,42215.0,42214.0,0.00046568]
[1644675650213,0.53134453,42215.0,42207.0,0.20146435]
[1644675650409,0.23561938,42215.0,42212.0,0.00042809]
[1644675651009,0.3091452,42218.0,42212.0,0.00042809]
[1644675651463,0.20520231,42217.0,42208.0,0.00018099]
[1644675651661,0.20520231,42217.0,42213.0,0.00042808]
[1644675652663,0.20520231,42217.0,42208.0,0.00018099]
[1644675652968,0.20520231,42217.0,42213.0,0.00042808]
[1644675653964,0.20520231,42217.0,42206.0,0.00018099]
[1644675654164,0.20520231,42217.0,42213.0,0.00042808]
[1644675654566,0.3091452,42218.0,42213.0,0.00042808]
[1644675654865,0.1706,42219.0,42213.0,0.00042808]
[1644675654866,0.1233,42219.0,42213.0,0.00042808]
[1644675655104,0.1233,42219.0,42206.0,0.00018099]
[1644675655406,0.1233,42219.0,42213.0,0.00043338]
[1644675655707,0.1975348,42218.0,42213.0,0.00043338]
[1644675656304,0.1975348,42218.0,42206.0,0.00018099]
[1644675656510,0.3279728,42219.0,42213.0,0.00043338]
[1644675656511,0.1233,42219.0,42213.0,0.00043338]
[1644675657407,0.1233,42219.0,42207.0,0.00018099]
[1644675657607,0.1233,42219.0,42214.0,0.00043338]
[1644675658217,0.9561,42226.0,42215.0,0.0473]
[1644675658409,0.9561,42226.0,42215.0,0.04748099]
[1644675658410,0.1156,42225.0,42215.0,0.04748099]
[1644675658861,0.39096881,42227.0,42222.0,0.22876902]
[1644675659159,0.39096881,42227.0,42223.0,0.12185376]
[1644675659160,0.00056881,42227.0,42223.0,0.12185376]
[1644675659361,0.00056881,42227.0,42224.0,0.0473]
[1644675664612,0.23102648,42228.0,42224.0,0.0473]
[1644675665917,0.22333921,42220.0,42217.0,0.00018099]
[1644675666113,0.19636822,42220.0,42214.0,0.04748099]
[1644675666357,0.19636822,42220.0,42213.0,0.50518099]
[1644675666559,0.0786132,42214.0,42211.0,0.18831419]
[1644675666857,0.0786132,42214.0,42211.0,0.00018099]
[1644675667057,0.0786132,42214.0,42210.0,0.0473]
[1644675667358,0.0786132,42214.0,42210.0,0.04748099]
[1644675667955,0.0786132,42214.0,42210.0,0.0473]
[1644675668564,0.4122927,42220.0,42212.0,0.25164108]
[1644675668959,0.4122927,42220.0,42210.0,0.44977295]
[1644675668960,0.4122927,42220.0,42213.0,0.25164108]
[1644675669761,0.4122927,42220.0,42214.0,0.00046568]
[1644675670012,0.07868594,42218.0,42214.0,0.00064667]
[1644675670411,0.07868594,42218.0,42215.0,0.25164108]
[1644675670611,0.07868594,42218.0,42215.0,0.25182207]
[1644675671011,0.07868594,42218.0,42215.0,0.25164108]
[1644675671411,0.07868594,42218.0,42216.0,0.25164108]
[1644675671612,0.07868594,42218.0,42215.0,0.25182207]
[1644675672014,0.085067,42222.0,42215.0,0.25182207]
[1644675672213,0.085067,42222.0,42216.0,0.25164108]
[1644675673214,0.23851491,42221.0,42216.0,0.25164108]
[1644675673413,0.23851491,42221.0,42217.0,0.00046567]
[1644675673615,0.06880005,42220.0,42217.0,0.00064666]
[1644675674258,0.06880005,42220.0,42217.0,0.25182207]
[1644675674455,0.06880005,42220.0,42217.0,0.25164108]
[1644675674656,0.085067,42222.0,42217.0,0.25182207]
[1644675675658,0.085067,42222.0,42217.0,0.25183706]
[1644675675859,0.1570762,42222.0,42217.0,0.25183706]
[1644675676257,0.1570762,42222.0,42218.0,0.25164108]
[1644675676461,0.1570762,42222.0,42218.0,0.00018099]
[1644675676660,0.1570762,42222.0,42218.0,0.25164108]
[1644675676860,0.1570762,42222.0,42218.0,0.2521062]
[1644675677906,0.1570762,42222.0,42218.0,0.25164108]
[1644675678108,0.1570762,42222.0,42218.0,0.2521062]
[1644675679110,0.1570762,42222.0,42218.0,0.25164108]
[1644675679307,0.1570762,42222.0,42218.0,0.2521062]
[1644675680310,0.1570762,42222.0,42219.0,0.25164108]
[1644675680911,0.1570762,42222.0,42219.0,0.25182207]
[1644675681112,0.085067,42222.0,42220.0,0.25164108]
[1644675681359,0.085067,42222.0,42220.0,0.30200725]
[1644675681561,0.085067,42222.0,42221.0,0.34930725]
[1644675681861,0.085067,42222.0,42221.0,0.0473]
[1644675682057,0.085067,42222.0,42221.0,0.34930725]
[1644675682259,0.085067,42222.0,42221.0,0.0473]
[1644675682758,0.085067,42222.0,42221.0,0.34930725]
[1644675683158,0.085067,42222.0,42221.0,0.0473]
[1644675683358,0.085067,42222.0,42221.0,0.34930725]
[1644675684466,0.085067,42222.0,42221.0,0.0473]
[1644675684860,0.085067,42222.0,42221.0,0.29906373]
[1644675685709,0.085067,42222.0,42221.0,0.0473]
[1644675685912,0.085067,42222.0,42221.0,0.29906546]
[1644675686711,0.085067,42222.0,42221.0,0.0473]
[1644675688310,0.08496234,42222.0,42221.0,0.0473]
[1644675690857,0.08496234,42222.0,42221.0,0.25174546]
[1644675691258,0.08496234,42222.0,42220.0,0.25174546]
[1644675691858,0.08496234,42222.0,42219.0,0.25217755]
[1644675692508,0.08496234,42222.0,42219.0,0.25174546]
[1644675693513,0.08496234,42222.0,42221.0,0.20140666]
[1644675694313,0.08496234,42222.0,42219.0,0.25174546]
[1644675695116,0.08496234,42222.0,42219.0,0.20142845]
[1644675695515,0.08496234,42222.0,42218.0,0.20186014]
[1644675695914,0.08496234,42222.0,42218.0,0.20142845]
[1644675696115,0.23025349,42219.0,42218.0,0.20187297]
[1644675696356,0.23025349,42219.0,42218.0,0.00044452]
[1644675697156,0.23025349,42219.0,42217.0,0.00018099]
[1644675697355,0.23025349,42219.0,42216.0,0.25218998]
[1644675697755,0.23025349,42219.0,42217.0,0.25174546]
[1644675698855,0.08496234,42222.0,42217.0,0.25174546]
[1644675699057,0.08496234,42222.0,42221.0,0.20146926]
[1644675701828,0.08496234,42222.0,42219.0,0.25217527]
[1644675702030,0.08496234,42222.0,42220.0,0.25174546]
[1644675702429,0.08496234,42222.0,42219.0,0.30243706]
[1644675702632,0.08496234,42222.0,42220.0,0.30200725]
[1644675702829,0.08496234,42222.0,42219.0,0.00042981]
[1644675702830,0.08496234,42222.0,42219.0,0.30243706]
[1644675703029,0.08496234,42222.0,42221.0,0.2518552]
[1644675703228,0.08496234,42222.0,42219.0,0.30200725]
[1644675703428,0.08496234,42222.0,42221.0,0.25185548]
[1644675703634,0.4310839,42222.0,42220.0,0.25185548]
[1644675703866,0.4310839,42222.0,42219.0,0.25185548]
[1644675703867,0.20406013,42221.0,42219.0,0.25185548]
[1644675704463,0.4310839,42222.0,42219.0,0.25185548]
[1644675704666,0.75,42220.0,42217.0,0.45808434]
[1644675704869,0.333161,42219.0,42215.0,0.00018099]
[1644675705068,0.680461,42218.0,42216.0,0.00018099]
[1644675705270,0.3,42217.0,42206.0,0.35236015]
[1644675705565,0.0473,42216.0,42205.0,0.35236015]
[1644675705866,0.22569208,42206.0,42204.0,0.35236015]
[1644675706069,0.20312288,42206.0,42204.0,0.35236015]
[1644675706267,0.20312288,42206.0,42203.0,0.35236015]
[1644675706667,0.20312288,42206.0,42202.0,0.35236015]
[1644675707081,0.20312288,42206.0,42202.0,0.35279164]
[1644675707269,0.20312288,42206.0,42202.0,0.44252646]
[1644675707509,0.16955062,42206.0,42202.0,0.35279164]
[1644675707912,0.16955062,42206.0,42202.0,0.35236015]
[1644675708112,0.16633722,42206.0,42202.0,0.0004315]
[1644675708512,0.16633722,42206.0,42202.0,0.00061249]
[1644675709212,0.16633722,42206.0,42202.0,0.00018099]
[1644675709414,0.16633722,42206.0,42202.0,0.0004315]
[1644675709615,0.16633722,42206.0,42202.0,0.00061249]
[1644675710314,0.16633722,42206.0,42202.0,0.00018099]
[1644675710516,0.16633722,42206.0,42202.0,0.00043123]
[1644675711115,0.16633722,42206.0,42202.0,0.00061222]
[1644675711358,0.3,42212.0,42202.0,0.00061222]
[1644675711560,0.3,42212.0,42200.0,0.35236015]
[1644675711860,0.3,42212.0,42202.0,0.00043123]
[1644675712458,0.3,42212.0,42202.0,0.35279138]
[1644675712658,0.3,42212.0,42205.0,0.30211215]
[1644675712858,0.42572336,42213.0,42205.0,0.30211215]
[1644675713063,0.42572336,42213.0,42205.0,0.30254337]
[1644675713359,0.27834293,42212.0,42205.0,0.30254337]
[1644675713561,0.28650887,42212.0,42205.0,0.00043122]
[1644675713961,0.28650887,42212.0,42204.0,0.00018099]
[1644675714160,0.28650887,42212.0,42206.0,0.00043125]
[1644675715211,0.28650887,42212.0,42204.0,0.00018099]
[1644675715409,0.28650887,42212.0,42207.0,0.00043125]
[1644675716009,0.38650887,42212.0,42207.0,0.00043125]
[1644675716407,0.38650887,42212.0,42201.0,0.30211215]
[1644675716408,0.059266,42210.0,42201.0,0.30211215]
[1644675716607,0.27728888,42209.0,42207.0,0.00043125]
[1644675717508,0.27728888,42209.0,42200.0,0.30211215]
[1644675717708,0.19522499,42203.0,42201.0,0.00018099]
[1644675717908,0.19522499,42203.0,42200.0,0.30211215]
[1644675719160,0.19522499,42203.0,42200.0,0.00018099]
[1644675719361,0.19522499,42203.0,42199.0,0.30254342]
[1644675719563,0.27728888,42209.0,42200.0,0.30211215]
[1644675719762,0.27728888,42209.0,42200.0,0.30229314]
[1644675719963,0.27728888,42209.0,42200.0,0.00018099]
[1644675720162,0.27728888,42209.0,42202.0,0.00043126]
[1644675720563,0.21923183,42203.0,42202.0,0.00043126]
[1644675721164,0.21923183,42203.0,42198.0,0.00018099]
[1644675721365,0.21923183,42203.0,42197.0,0.30211215]
[1644675722164,0.21923183,42203.0,42198.0,0.30211215]
[1644675723810,0.21923183,42203.0,42197.0,0.30211215]
[1644675724212,0.21923183,42203.0,42198.0,0.30211215]
[1644675724612,0.1144,42208.0,42198.0,0.30211215]
[1644675725012,0.1144,42208.0,42198.0,0.3025759]
[1644675725414,0.1144,42208.0,42198.0,0.00046375]
[1644675725618,0.19911465,42205.0,42198.0,0.00046375]
[1644675725815,0.19911465,42205.0,42198.0,0.00064474]
[1644675726018,0.19911465,42205.0,42198.0,0.00018099]
[1644675726271,0.17920319,42205.0,42199.0,0.00046374]
[1644675727262,0.17920319,42205.0,42197.0,0.30229314]
[1644675727462,0.17920319,42205.0,42200.0,0.00046374]
[1644675728465,0.17920319,42205.0,42198.0,0.00018099]
[1644675728667,0.29625445,42207.0,42200.0,0.00046374]
[1644675729566,0.29625445,42207.0,42199.0,0.00018099]
[1644675729766,0.1144,42208.0,42201.0,0.00046373]
[1644675730024,0.38323638,42208.0,42201.0,0.00046373]
[1644675730426,0.1144,42208.0,42201.0,0.00046373]
[1644675730624,0.38492133,42208.0,42201.0,0.00046373]
[1644675730824,0.1144,42208.0,42199.0,0.00018099]
[1644675731025,0.1144,42208.0,42202.0,0.00046373]
[1644675731228,0.38465423,42208.0,42202.0,0.00046373]
[1644675731727,0.1144,42208.0,42202.0,0.00046373]
[1644675732027,0.1144,42208.0,42200.0,0.00018099]
[1644675732225,0.38362479,42208.0,42203.0,0.00046373]
[1644675732424,0.38215103,42208.0,42203.0,0.00046373]
[1644675732624,0.3831761,42208.0,42203.0,0.00046373]
[1644675732824,0.1144,42208.0,42203.0,0.00046373]
[1644675733226,0.1144,42208.0,42200.0,0.00018099]
[1644675733426,0.1144,42208.0,42203.0,0.00046372]
[1644675734365,0.3830804,42208.0,42199.0,0.00018099]
[1644675734565,0.38494842,42208.0,42203.0,0.00046372]
[1644675734765,0.1144,42208.0,42203.0,0.00046372]
[1644675735569,0.23740875,42209.0,42200.0,0.30211215]
[1644675735767,0.23740875,42209.0,42203.0,0.00046372]
[1644675736769,0.28627808,42212.0,42201.0,0.00018099]
[1644675736971,0.28627808,42212.0,42204.0,0.00046372]
[1644675737613,0.34553908,42212.0,42204.0,0.00046372]
[1644675737812,0.20593433,42207.0,42204.0,0.00046372]
[1644675738014,0.20593433,42207.0,42199.0,0.30211215]
[1644675738215,0.20593433,42207.0,42206.0,0.00046371]
[1644675739213,0.20593433,42207.0,42201.0,0.30229314]
[1644675739413,0.20593433,42207.0,42204.0,0.00046372]
[1644675739614,0.28627808,42212.0,42204.0,0.00046372]
[1644675740315,0.28627808,42212.0,42202.0,0.00018099]
[1644675740516,0.26993363,42208.0,42206.0,0.0004276]
[1644675741566,0.26993363,42208.0,42202.0,0.00018099]
[1644675741765,0.26993363,42208.0,42205.0,0.0004276]
[1644675742762,0.26993363,42208.0,42200.0,0.30211215]
[1644675742965,0.26993363,42208.0,42204.0,0.0004276]
[1644675743963,0.26993363,42208.0,42202.0,0.00018099]
[1644675744167,0.26993363,42208.0,42204.0,0.00042761]
[1644675745216,0.26993363,42208.0,42202.0,0.30229314]
[1644675745416,0.26993363,42208.0,42204.0,0.00043138]
[1644675746417,0.26993363,42208.0,42203.0,0.00018099]
[1644675746616,0.26993363,42208.0,42204.0,0.00043138]
[1644675747017,0.26984012,42208.0,42204.0,0.00043138]
[1644675747417,0.26984012,42208.0,42204.0,0.30254353]
[1644675747619,0.26984012,42208.0,42204.0,0.30211215]
[1644675747917,0.26984012,42208.0,42204.0,0.30254353]
[1644675748317,0.26984012,42208.0,42204.0,0.00043138]
[1644675748518,0.26984012,42208.0,42204.0,0.00061237]
[1644675748774,0.26984012,42208.0,42204.0,0.00018099]
[1644675748967,0.26984012,42208.0,42204.0,0.00043083]
[1644675749168,0.26984012,42208.0,42204.0,0.00061182]
[1644675749372,0.26984012,42208.0,42206.0,0.30211215]
[1644675752369,0.26984012,42208.0,42197.0,0.14647328]
[1644675752370,0.53782828,42205.0,42203.0,0.30211215]
[1644675752822,0.53782828,42205.0,42204.0,0.30211215]
[1644675753222,0.53782828,42205.0,42203.0,0.30229635]
[1644675753424,0.53782828,42205.0,42203.0,0.30211215]
[1644675754425,0.53282828,42205.0,42203.0,0.30211215]
[1644675755425,0.27077976,42204.0,42202.0,0.30272726]
[1644675755625,0.27077976,42204.0,42202.0,0.30254306]
[1644675755825,0.53282828,42205.0,42202.0,0.30254306]
[1644675756026,0.53282828,42205.0,42202.0,0.30211215]
[1644675756276,0.53282828,42205.0,42203.0,0.30211215]
[1644675756468,0.53282828,42205.0,42202.0,0.30211215]
[1644675756667,0.53282828,42205.0,42203.0,0.30211215]
[1644675757467,0.53282828,42205.0,42204.0,0.30211215]
[1644675757867,0.53282828,42205.0,42203.0,0.30229635]
[1644675758068,0.53282828,42205.0,42203.0,0.30211215]
[1644675759368,0.53282828,42205.0,42204.0,0.30211215]
[1644675761620,0.53282828,42205.0,42203.0,0.0001842]
[1644675761821,0.53282828,42205.0,42204.0,0.30244558]
[1644675763023,0.53282828,42205.0,42203.0,0.0001842]
[1644675763224,0.53282828,42205.0,42202.0,0.35236015]
[1644675763523,0.53282828,42205.0,42202.0,0.35279106]
[1644675763964,0.53282828,42205.0,42202.0,0.35297526]
[1644675764265,0.53282828,42205.0,42202.0,0.35279106]
[1644675764463,0.53282828,42205.0,42202.0,0.35236015]
[1644675764862,0.53282828,42205.0,42202.0,0.35254435]
[1644675765267,0.53282828,42205.0,42203.0,0.30245054]
[1644675765469,0.53282828,42205.0,42202.0,0.30263474]
[1644675765666,0.53282828,42205.0,42202.0,0.30245054]
[1644675765866,0.53282828,42205.0,42202.0,0.30288145]
[1644675766867,0.53282828,42205.0,42202.0,0.30245054]
[1644675767266,0.53282828,42205.0,42202.0,0.30263474]
[1644675767515,0.53282828,42205.0,42204.0,0.30245054]
[1644675767717,0.53282828,42205.0,42203.0,0.0001842]
[1644675767915,0.53282828,42205.0,42202.0,0.35254435]
[1644675768114,0.53282828,42205.0,42203.0,0.30244212]
[1644675769015,0.53282828,42205.0,42204.0,0.30244212]
[1644675771119,0.53282828,42205.0,42203.0,0.30262623]
[1644675771368,0.53282828,42205.0,42203.0,0.30244212]
[1644675772870,0.53282828,42205.0,42202.0,0.30262623]
[1644675773067,0.53282828,42205.0,42202.0,0.30287354]
[1644675773470,0.53282828,42205.0,42204.0,0.30244212]
[1644675774869,0.53282828,42205.0,42203.0,0.00018411]
[1644675775120,0.53282828,42205.0,42202.0,0.3528134]
[1644675775317,0.53282828,42205.0,42202.0,0.35236015]
[1644675775521,0.53282828,42205.0,42202.0,0.35299752]
[1644675775919,0.53282828,42205.0,42202.0,0.35281341]
[1644675776620,0.53282828,42205.0,42202.0,0.35236015]
[1644675776818,0.53282828,42205.0,42202.0,0.35254426]
[1644675777018,0.53272228,42205.0,42202.0,0.35254426]
[1644675777820,0.53272228,42205.0,42202.0,0.35236015]
[1644675778023,0.53272228,42205.0,42202.0,0.35254426]
[1644675778874,0.53272228,42205.0,42203.0,0.30244015]
[1644675779074,0.53272228,42205.0,42202.0,0.00018411]
[1644675779075,0.53272228,42205.0,42202.0,0.30262426]
[1644675779276,0.53272228,42205.0,42201.0,0.30305247]
[1644675779477,0.53272228,42205.0,42202.0,0.30244015]
[1644675779874,0.53272228,42205.0,42202.0,0.30262426]
[1644675780275,0.53272228,42205.0,42201.0,0.30305247]
[1644675780477,0.53272228,42205.0,42201.0,0.30286836]
[1644675781279,0.53272228,42205.0,42201.0,0.30244015]
[1644675781479,0.53272228,42205.0,42201.0,0.30287242]
[1644675782515,0.53272228,42205.0,42201.0,0.30244015]
[1644675782715,0.53272228,42205.0,42201.0,0.30287242]
[1644675783718,0.53272228,42205.0,42201.0,0.30244015]
[1644675783918,0.53272228,42205.0,42201.0,0.30287242]
[1644675784521,0.53272228,42205.0,42202.0,0.30244015]
[1644675784918,0.53272228,42205.0,42202.0,0.30262426]
[1644675785120,0.53272228,42205.0,42201.0,0.30305554]
[1644675785419,0.53272228,42205.0,42201.0,0.30287143]
[1644675786019,0.53272228,42205.0,42201.0,0.30244015]
[1644675786275,0.53272228,42205.0,42202.0,0.30244015]
[1644675786469,0.53272228,42205.0,42201.0,0.00043128]
[1644675786668,0.53272228,42205.0,42201.0,0.00061539]
[1644675787269,0.53272228,42205.0,42201.0,0.00018411]
[1644675787470,0.53272228,42205.0,42201.0,0.00043128]
[1644675787770,0.53272228,42205.0,42201.0,0.00061539]
[1644675788375,0.53272228,42205.0,42201.0,0.00018411]
[1644675788671,0.53272228,42205.0,42201.0,0.30287158]
[1644675789572,0.53272228,42205.0,42201.0,0.30244015]
[1644675789770,0.53272228,42205.0,42201.0,0.30287158]
[1644675790929,0.53272228,42205.0,42201.0,0.30244015]
[1644675791121,0.53272228,42205.0,42201.0,0.30287158]
[1644675792120,0.53272228,42205.0,42201.0,0.30244015]
[1644675792320,0.53272228,42205.0,42201.0,0.30287155]
[1644675792521,0.53244143,42205.0,42201.0,0.30287155]
[1644675793121,0.53244143,42205.0,42202.0,0.30244015]
[1644675793977,0.53244143,42205.0,42204.0,0.08682484]
[1644675795280,0.53244143,42205.0,42204.0,0.3560396]
[1644675795680,0.53244143,42205.0,42204.0,0.52529448]
[1644675795879,0.53244143,42205.0,42204.0,0.57259448]
[1644675796083,0.53244143,42205.0,42204.0,0.30337972]
[1644675797617,0.53244143,42205.0,42204.0,0.62103662]
[1644675797822,0.53244143,42205.0,42204.0,0.67103662]
[1644675798020,0.53244143,42205.0,42204.0,0.67714431]
[1644675798218,0.53244143,42205.0,42204.0,0.68004769]
[1644675800022,0.53244143,42205.0,42204.0,0.35948741]
[1644675800425,0.53244143,42205.0,42204.0,0.25948741]
[1644675802272,0.53244143,42205.0,42204.0,0.25337972]
[1644675802475,0.53244143,42205.0,42204.0,0.48676318]
[1644675802674,0.53244143,42205.0,42204.0,0.13412484]
[1644675802875,0.53244143,42205.0,42204.0,0.23412484]
[1644675803982,0.53244143,42205.0,42204.0,0.13412484]
[1644675804381,0.53244143,42205.0,42204.0,0.0473]
[1644675804577,0.53244143,42205.0,42202.0,0.0004314]
[1644675805223,0.53244143,42205.0,42200.0,0.00018411]
[1644675805423,0.53244143,42205.0,42201.0,0.0004314]
[1644675805624,0.53244143,42205.0,42201.0,0.00061551]
[1644675806425,0.53244143,42205.0,42200.0,0.00018411]
[1644675806726,0.21308002,42200.0,42199.0,0.631601]
[1644675806925,0.21308002,42200.0,42199.0,0.39244686]
[1644675808770,0.13852788,42200.0,42199.0,0.39244686]
[1644675808968,0.53244143,42205.0,42199.0,0.39244686]
[1644675809168,0.53244143,42205.0,42202.0,0.30229862]
[1644675809968,0.25868941,42204.0,42202.0,0.30229862]
[1644675812720,0.25868941,42204.0,42201.0,0.30273003]
[1644675813720,0.25868941,42204.0,42201.0,0.30229862]
[1644675814120,0.25868941,42204.0,42201.0,0.30248273]
[1644675814524,0.53244143,42205.0,42201.0,0.30248273]
[1644675814720,0.53244143,42205.0,42202.0,0.30229862]
[1644675816122,0.53244143,42205.0,42203.0,0.30229862]
[1644675816370,0.53244143,42205.0,42204.0,0.27690194]
[1644675816671,0.53244143,42205.0,42203.0,0.30228319]
[1644675816871,0.53244143,42205.0,42202.0,0.30228319]
[1644675817172,0.25277597,42203.0,42201.0,0.30271459]
[1644675817370,0.25277597,42203.0,42202.0,0.30228319]
[1644675817568,0.25277597,42203.0,42201.0,0.30271459]
[1644675817970,0.25277597,42203.0,42201.0,0.0004314]
[1644675818374,0.30498592,42202.0,42201.0,0.0004314]
[1644675818577,0.30498592,42202.0,42199.0,0.00018411]
[1644675818874,0.25277597,42203.0,42200.0,0.00043141]
[1644675819674,0.25277597,42203.0,42197.0,0.3024673]
[1644675819877,0.25277597,42203.0,42199.0,0.00043141]
[1644675820130,0.25277597,42203.0,42199.0,0.3027146]
[1644675820933,0.25277597,42203.0,42199.0,0.30228319]
[1644675821134,0.25277597,42203.0,42199.0,0.3027146]
[1644675821534,0.25277597,42203.0,42199.0,0.00043141]
[1644675822134,0.25277597,42203.0,42198.0,0.00018411]
[1644675822336,0.25277597,42203.0,42199.0,0.00043141]
[1644675823333,0.25277597,42203.0,42198.0,0.00018411]
[1644675823536,0.25277597,42203.0,42199.0,0.00043141]
[1644675824578,0.25277597,42203.0,42198.0,0.00018411]
[1644675824779,0.25277597,42203.0,42199.0,0.00043182]
[1644675825779,0.25277597,42203.0,42198.0,0.00018411]
[1644675825977,0.25277597,42203.0,42199.0,0.00043182]
[1644675826982,0.25277597,42203.0,42198.0,0.00018411]
[1644675827281,0.25238646,42203.0,42199.0,0.00043182]
[1644675828120,0.25238646,42203.0,42198.0,0.00018411]
[1644675828320,0.25238646,42203.0,42199.0,0.00043136]
[1644675829221,0.25238646,42203.0,42197.0,0.00018411]
[1644675829421,0.25238646,42203.0,42199.0,0.00043136]
[1644675830427,0.00079518,42198.0,42194.0,0.00018411]
[1644675830625,0.00079518,42198.0,42193.0,0.00018411]
[1644675831375,0.00079518,42198.0,42192.0,0.03018411]
[1644675831376,0.26901376,42193.0,42192.0,0.03018411]
[1644675831574,0.26901376,42193.0,42192.0,0.03]
[1644675831575,0.24211239,42193.0,42192.0,0.03]
[1644675833176,0.57527339,42193.0,42192.0,0.03]
[1644675833376,0.24211239,42193.0,42192.0,0.03]
[1644675835238,0.52168091,42193.0,42192.0,0.03]
[1644675836139,0.45,42191.0,42190.0,0.00046389]
[1644675836338,0.45,42191.0,42190.0,0.0006483]
[1644675836339,0.85182363,42191.0,42190.0,0.0006483]
[1644675836541,0.40182363,42191.0,42182.0,0.00018441]
[1644675836740,0.40182363,42191.0,42188.0,0.0004639]
[1644675837138,0.05419891,42190.0,42188.0,0.0004639]
[1644675837543,0.33148999,42189.0,42188.0,0.0004639]
[1644675837742,0.28148999,42189.0,42182.0,0.00018441]
[1644675837945,0.28148999,42189.0,42187.0,0.00046391]
[1644675838996,0.28148999,42189.0,42182.0,0.00018441]
[1644675838997,0.33148999,42189.0,42182.0,0.00018441]
[1644675839195,0.08683163,42185.0,42181.0,0.01]
[1644675839395,0.27305084,42185.0,42181.0,0.01018441]
[1644675839595,0.27305084,42185.0,42181.0,0.01]
[1644675839795,0.24040954,42184.0,42181.0,0.01]
[1644675839999,0.24040954,42184.0,42181.0,0.0104882]
[1644675840197,0.29040954,42184.0,42181.0,0.0104882]
[1644675840598,0.29040954,42184.0,42181.0,0.01067261]
[1644675840599,0.34040954,42184.0,42181.0,0.01067261]
[1644675840795,0.059307,42183.0,42181.0,0.01067261]
[1644675841195,0.809307,42183.0,42180.0,0.00046394]
[1644675841396,1.209307,42183.0,42174.0,0.0011]
[1644675841598,0.05,42180.0,42174.0,0.0011]
[1644675841899,0.21593,42179.0,42174.0,0.0011]
[1644675842096,0.05,42178.0,42174.0,0.0011]
[1644675842295,0.24215482,42176.0,42174.0,0.0011]
[1644675842525,0.29215482,42176.0,42174.0,0.0011]
[1644675842726,0.059314,42176.0,42174.0,0.0011]
[1644675842928,0.23094242,42177.0,42174.0,0.0011]
[1644675843925,0.0473,42178.0,42174.0,0.0011]
[1644675844927,0.19412035,42175.0,42174.0,0.0011]
[1644675845129,0.19412035,42175.0,42174.0,0.00156352]
[1644675846131,0.19412035,42175.0,42174.0,0.0011]
[1644675846381,0.4843263,42175.0,42174.0,0.0011]
[1644675846681,0.19412035,42175.0,42174.0,0.0011]
[1644675849080,0.4752088,42175.0,42174.0,0.0011]
[1644675851935,0.24412035,42175.0,42174.0,0.0011]
[1644675852135,0.34412035,42175.0,42174.0,0.0011]
[1644675852936,0.19412035,42175.0,42174.0,0.0011]
[1644675854481,0.24412035,42175.0,42174.0,0.0011]
[1644675857622,0.29412035,42175.0,42174.0,0.0011]
[1644675858021,0.29412035,42175.0,42173.0,0.00018427]
[1644675858022,0.809319,42174.0,42171.0,0.0067468]
[1644675858223,0.868639,42174.0,42172.0,0.00018427]
[1644675858528,0.24611999,42173.0,42171.0,0.0067468]
[1644675858728,0.34611999,42173.0,42171.0,0.0067468]
[1644675859024,0.24641374,42172.0,42171.0,0.0067468]
[1644675859323,0.2,42173.0,42171.0,0.0067468]
[1644675859524,0.24892403,42172.0,42171.0,0.0067468]
[1644675860324,0.05,42173.0,42171.0,0.0067468]
[1644675860525,0.02930338,42174.0,42171.0,0.0067468]
[1644675860526,0.44069921,42174.0,42171.0,0.0067468]
[1644675860724,0.34069921,42174.0,42171.0,0.0067468]
[1644675860924,0.34069921,42174.0,42171.0,0.00693107]
[1644675861976,0.40001821,42174.0,42171.0,0.0067468]
[1644675862176,0.45001821,42174.0,42171.0,0.00693107]
[1644675862376,0.55001821,42174.0,42171.0,0.00693107]
[1644675863178,0.55001821,42174.0,42171.0,0.0067468]
[1644675863379,0.55001821,42174.0,42171.0,0.00693107]
[1644675864287,0.55001821,42174.0,42162.0,0.03]
[1644675864288,0.333161,42170.0,42162.0,0.03]
[1644675864585,0.333161,42168.0,42162.0,0.03]
[1644675864781,0.05,42167.0,42162.0,0.03]
[1644675865223,0.24538524,42163.0,42162.0,0.03]
[1644675865425,0.55053421,42163.0,42162.0,0.03]
[1644675865624,0.21737321,42163.0,42162.0,0.02519111]
[1644675865826,0.26737321,42163.0,42162.0,0.02519111]
[1644675866225,0.21737321,42163.0,42162.0,0.02519111]
[1644675866627,0.21737321,42163.0,42162.0,0.025]
[1644675866823,0.49263894,42163.0,42162.0,0.025]
[1644675867127,0.49263894,42163.0,42151.0,0.01]
[1644675867128,0.059337,42160.0,42151.0,0.01]
[1644675867331,0.633161,42159.0,42151.0,0.01]
[1644675867525,0.3473,42159.0,42151.0,0.01]
[1644675867725,0.4973,42159.0,42151.0,0.01]
[1644675867925,0.20646939,42155.0,42151.0,0.01]
[1644675868128,0.26581539,42155.0,42151.0,0.01]
[1644675868328,0.75,42153.0,42143.0,0.20133521]
[1644675868526,0.059352,42151.0,42141.0,0.01]
[1644675868979,0.19015469,42147.0,42141.0,0.01]
[1644675869181,0.0473,42152.0,42144.0,0.0671308]
[1644675869377,0.0473,42152.0,42144.0,0.00045776]
[1644675870180,0.24853314,42151.0,42141.0,0.01]
[1644675870380,0.24853314,42151.0,42146.0,0.00045775]
[1644675872523,0.1238,42155.0,42146.0,0.00045775]
[1644675872725,0.1238,42155.0,42145.0,0.08303495]
[1644675874026,0.1238,42155.0,42148.0,0.00043323]
[1644675875029,0.1238,42155.0,42143.0,0.45279545]
[1644675875030,0.24134844,42151.0,42143.0,0.45279545]
[1644675875227,0.24134844,42151.0,42149.0,0.00043322]
[1644675876373,0.24134844,42151.0,42148.0,0.00018876]
[1644675876979,0.27329467,42150.0,42148.0,0.00018876]
[1644675877176,0.27226083,42150.0,42148.0,0.00018876]
[1644675877475,0.24134844,42151.0,42141.0,0.01]
[1644675877674,0.19535257,42149.0,42147.0,0.00018877]
[1644675877974,0.24134844,42151.0,42147.0,0.00018877]
[1644675878574,0.24134844,42151.0,42141.0,0.01]
[1644675878777,0.27294209,42150.0,42147.0,0.00018877]